[Event "Early-Titled-Tuesday-Blitz-February-27-2024"]
[Site "Chess.com"]
[Date "2024.02.27"]
[Round "5"]
[White "rhwr"]
[Black "Mesa_1"]
[Result "0-1"]
[WhiteElo "2278"]
[BlackElo "2507"]
[TimeControl "180+1"]
[EndTime "8:53:45 PST"]
[Termination "Mesa_1 won on time"]

1. e4 {[%clk 0:02:57.2]} 1... e5 {[%clk 0:02:58.8]} 2. Nf3 {[%clk 0:02:57.4]}
2... Nf6 {[%clk 0:02:58.2]} 3. Nc3 {[%clk 0:02:52.4]} 3... Nc6 {[%clk
0:02:57.1]} 4. Bb5 {[%clk 0:02:52.5]} 4... Bb4 {[%clk 0:02:56]} 5. Bxc6 {[%clk
0:02:52.3]} 5... dxc6 {[%clk 0:02:54.2]} 6. d3 {[%clk 0:02:52.2]} 6... Nd7
{[%clk 0:02:52.3]} 7. O-O {[%clk 0:02:52]} 7... f6 {[%clk 0:02:50.7]} 8. a3
{[%clk 0:02:46.3]} 8... Bd6 {[%clk 0:02:51.2]} 9. d4 {[%clk 0:02:43.9]} 9... O-O
{[%clk 0:02:49.6]} 10. Be3 {[%clk 0:02:40.2]} 10... b6 {[%clk 0:02:47.9]} 11.
Re1 {[%clk 0:02:31.9]} 11... Bb7 {[%clk 0:02:47.1]} 12. b4 {[%clk 0:02:28.5]}
12... Re8 {[%clk 0:02:46]} 13. d5 {[%clk 0:02:24]} 13... cxd5 {[%clk 0:02:45.1]}
14. Nxd5 {[%clk 0:02:23.7]} 14... Nf8 {[%clk 0:02:44.8]} 15. c4 {[%clk 0:02:20]}
15... c6 {[%clk 0:02:44.2]} 16. Nc3 {[%clk 0:02:19.1]} 16... Bc7 {[%clk
0:02:44.9]} 17. Qb3 {[%clk 0:02:16.5]} 17... Bc8 {[%clk 0:02:44.2]} 18. Rad1
{[%clk 0:02:16]} 18... Qe7 {[%clk 0:02:44.9]} 19. b5 {[%clk 0:02:09.3]} 19... c5
{[%clk 0:02:35.2]} 20. Nd5 {[%clk 0:02:09.1]} 20... Qf7 {[%clk 0:02:35.9]} 21.
Bc1 {[%clk 0:01:52.2]} 21... Ne6 {[%clk 0:02:35.3]} 22. Qd3 {[%clk 0:01:36.1]}
22... Bb7 {[%clk 0:02:34.6]} 23. Bb2 {[%clk 0:01:20.9]} 23... Rad8 {[%clk
0:02:35.1]} 24. g3 {[%clk 0:01:08.9]} 24... Bb8 {[%clk 0:02:35.7]} 25. Nh4
{[%clk 0:01:06.5]} 25... g6 {[%clk 0:02:32.5]} 26. Qf3 {[%clk 0:01:03]} 26...
Kg7 {[%clk 0:02:31.7]} 27. Qg4 {[%clk 0:01:02.2]} 27... h5 {[%clk 0:02:29.6]}
28. Qf3 {[%clk 0:00:57.5]} 28... Nc7 {[%clk 0:02:26.9]} 29. Ne3 {[%clk
0:00:52.4]} 29... Ne6 {[%clk 0:02:25.1]} 30. Rxd8 {[%clk 0:00:46.6]} 30... Rxd8
{[%clk 0:02:25]} 31. Qg2 {[%clk 0:00:35.7]} 31... Rd2 {[%clk 0:02:23.2]} 32. Bc3
{[%clk 0:00:34.7]} 32... Rd3 {[%clk 0:02:23.9]} 33. Rc1 {[%clk 0:00:31.8]} 33...
Ng5 {[%clk 0:02:22.1]} 34. Nd5 {[%clk 0:00:26.7]} 34... Bc8 {[%clk 0:02:10.3]}
35. f4 {[%clk 0:00:26.8]} 35... exf4 {[%clk 0:02:01.2]} 36. gxf4 {[%clk
0:00:27.7]} 36... Nh3+ {[%clk 0:02:01.7]} 37. Kh1 {[%clk 0:00:28.3]} 37... Nxf4
{[%clk 0:01:42.3]} 38. Qf1 {[%clk 0:00:20.9]} 38... Bh3 {[%clk 0:01:38]} 39. Qf2
{[%clk 0:00:11]} 39... Nxd5 {[%clk 0:01:27.9]} 40. exd5 {[%clk 0:00:10.8]} 40...
Qe7 {[%clk 0:01:24.1]} 41. Re1 {[%clk 0:00:09.5]} 41... Be5 {[%clk 0:01:18.4]}
42. Bxe5 {[%clk 0:00:04.7]} 42... fxe5 {[%clk 0:01:19.3]} 43. Ng2 {[%clk
0:00:01.3]} 43... Qg5 {[%clk 0:01:13]} 0-1

[Event "Early-Titled-Tuesday-Blitz-February-27-2024"]
[Site "Chess.com"]
[Date "2024.02.27"]
[Round "5"]
[White "KacperKacprzak"]
[Black "Chopper1905"]
[Result "0-1"]
[WhiteElo "2701"]
[BlackElo "2924"]
[TimeControl "180+1"]
[EndTime "8:53:49 PST"]
[Termination "Chopper1905 won by resignation"]

1. d4 {[%clk 0:03:00.9]} 1... Nf6 {[%clk 0:02:56.1]} 2. c4 {[%clk 0:03:01.3]}
2... g6 {[%clk 0:02:53.8]} 3. Nc3 {[%clk 0:03:00.5]} 3... Bg7 {[%clk 0:02:54.2]}
4. e4 {[%clk 0:03:00.1]} 4... d6 {[%clk 0:02:54.6]} 5. Be2 {[%clk 0:03:00.6]}
5... O-O {[%clk 0:02:54.4]} 6. Bg5 {[%clk 0:03:01.3]} 6... c6 {[%clk 0:02:49.4]}
7. Nf3 {[%clk 0:02:57.8]} 7... Na6 {[%clk 0:02:47.8]} 8. O-O {[%clk 0:02:57.2]}
8... e5 {[%clk 0:02:44.9]} 9. d5 {[%clk 0:02:45.3]} 9... h6 {[%clk 0:02:39.3]}
10. Be3 {[%clk 0:02:43]} 10... Ng4 {[%clk 0:02:33.4]} 11. a3 {[%clk 0:02:13.9]}
11... Nxe3 {[%clk 0:02:29.7]} 12. fxe3 {[%clk 0:02:14.8]} 12... h5 {[%clk
0:02:25.7]} 13. b4 {[%clk 0:02:13.8]} 13... Bh6 {[%clk 0:02:25.1]} 14. Qd3
{[%clk 0:02:14.5]} 14... c5 {[%clk 0:02:21.9]} 15. Rab1 {[%clk 0:02:13.6]} 15...
b6 {[%clk 0:02:21.9]} 16. Kh1 {[%clk 0:02:13.6]} 16... Kg7 {[%clk 0:02:21.5]}
17. Nb5 {[%clk 0:02:08.5]} 17... Qe7 {[%clk 0:02:02.1]} 18. Nd2 {[%clk
0:02:07.1]} 18... Bd7 {[%clk 0:01:49.5]} 19. Nc3 {[%clk 0:02:01.8]} 19... Qg5
{[%clk 0:01:46.9]} 20. Nd1 {[%clk 0:01:54.4]} 20... Ba4 {[%clk 0:01:40.5]} 21.
Rf3 {[%clk 0:01:52.8]} 21... Bd7 {[%clk 0:01:34.2]} 22. Rf1 {[%clk 0:01:51.4]}
22... Rae8 {[%clk 0:01:29.6]} 23. Nf3 {[%clk 0:01:47.9]} 23... Qd8 {[%clk
0:01:27.9]} 24. Nc3 {[%clk 0:01:44.9]} 24... f5 {[%clk 0:01:24]} 25. Nd2 {[%clk
0:01:43.6]} 25... Qg5 {[%clk 0:01:20.4]} 26. Rf3 {[%clk 0:01:42.5]} 26... f4
{[%clk 0:01:18.1]} 27. exf4 {[%clk 0:01:22.4]} 27... exf4 {[%clk 0:01:19]} 28.
Rff1 {[%clk 0:01:22]} 28... Qf6 {[%clk 0:01:17.5]} 29. Nf3 {[%clk 0:01:21]}
29... g5 {[%clk 0:01:13.4]} 30. e5 {[%clk 0:01:19.4]} 30... dxe5 {[%clk
0:01:13.4]} 31. Ne4 {[%clk 0:01:18]} 31... Qg6 {[%clk 0:01:13.7]} 32. Nfd2
{[%clk 0:01:17.8]} 32... Bf5 {[%clk 0:01:09.6]} 33. Rfe1 {[%clk 0:01:15.3]}
33... g4 {[%clk 0:01:09.6]} 34. Bf1 {[%clk 0:01:14.7]} 34... Kh8 {[%clk
0:01:06.4]} 35. Qc3 {[%clk 0:01:13.9]} 35... f3 {[%clk 0:00:52]} 36. Bd3 {[%clk
0:01:00.4]} 36... fxg2+ {[%clk 0:00:33.3]} 37. Kxg2 {[%clk 0:01:01.3]} 37... h4
{[%clk 0:00:33.8]} 38. Re2 {[%clk 0:00:55.9]} 38... Rg8 {[%clk 0:00:26.3]} 39.
Rf1 {[%clk 0:00:54.9]} 39... g3 {[%clk 0:00:25.7]} 40. hxg3 {[%clk 0:00:48.9]}
40... Bxd2 {[%clk 0:00:22.6]} 41. Qxd2 {[%clk 0:00:40.3]} 41... Bxe4+ {[%clk
0:00:19.8]} 42. Bxe4 {[%clk 0:00:37.2]} 42... Qxg3+ {[%clk 0:00:19.3]} 43. Kh1
{[%clk 0:00:37.9]} 43... Qh3+ {[%clk 0:00:19.7]} 0-1

[Event "Early-Titled-Tuesday-Blitz-February-27-2024"]
[Site "Chess.com"]
[Date "2024.02.27"]
[Round "5"]
[White "Vesapesa"]
[Black "Casper"]
[Result "0-1"]
[WhiteElo "2238"]
[BlackElo "2540"]
[TimeControl "180+1"]
[EndTime "8:53:53 PST"]
[Termination "Casper won on time"]

1. e4 {[%clk 0:02:58]} 1... c6 {[%clk 0:02:57.9]} 2. d4 {[%clk 0:02:56.9]} 2...
d5 {[%clk 0:02:57.2]} 3. exd5 {[%clk 0:02:57.5]} 3... Qxd5 {[%clk 0:02:55.9]} 4.
c4 {[%clk 0:02:51.6]} 4... Qa5+ {[%clk 0:02:54.4]} 5. Bd2 {[%clk 0:02:45.4]}
5... Qd8 {[%clk 0:02:54.4]} 6. Nf3 {[%clk 0:02:43.6]} 6... Bg4 {[%clk
0:02:54.8]} 7. Bc3 {[%clk 0:02:38.1]} 7... Nf6 {[%clk 0:02:55.3]} 8. Nbd2 {[%clk
0:02:36.7]} 8... e6 {[%clk 0:02:55.2]} 9. Be2 {[%clk 0:02:36]} 9... c5 {[%clk
0:02:46.7]} 10. Qb3 {[%clk 0:02:27.5]} 10... Qb6 {[%clk 0:02:41.9]} 11. h3
{[%clk 0:02:13.6]} 11... Bh5 {[%clk 0:02:40.1]} 12. O-O {[%clk 0:02:07.5]} 12...
Nc6 {[%clk 0:02:37.7]} 13. Rfe1 {[%clk 0:01:53.4]} 13... Be7 {[%clk 0:02:25.3]}
14. Qxb6 {[%clk 0:01:40.6]} 14... axb6 {[%clk 0:02:24.5]} 15. a3 {[%clk
0:01:38.4]} 15... O-O {[%clk 0:02:19.4]} 16. Rad1 {[%clk 0:01:23.6]} 16... Rfd8
{[%clk 0:02:18.7]} 17. g4 {[%clk 0:01:16]} 17... Bg6 {[%clk 0:02:18.1]} 18. Nf1
{[%clk 0:01:00]} 18... Bc2 {[%clk 0:02:09.6]} 19. Rd2 {[%clk 0:00:58.5]} 19...
Bb3 {[%clk 0:02:10.2]} 20. Ng3 {[%clk 0:00:55.7]} 20... Ra4 {[%clk 0:02:00.7]}
21. Ne5 {[%clk 0:00:49]} 21... cxd4 {[%clk 0:01:40.5]} 22. Nxc6 {[%clk
0:00:45.2]} 22... bxc6 {[%clk 0:01:40.5]} 23. Rxd4 {[%clk 0:00:42.1]} 23... Rxd4
{[%clk 0:01:33.3]} 24. Bxd4 {[%clk 0:00:43]} 24... c5 {[%clk 0:01:32.1]} 25. Be5
{[%clk 0:00:35]} 25... Bxc4 {[%clk 0:01:28.2]} 26. Rd1 {[%clk 0:00:30.7]} 26...
Nd5 {[%clk 0:01:15.6]} 27. Bf3 {[%clk 0:00:20.2]} 27... f6 {[%clk 0:01:10.7]}
28. Bxd5 {[%clk 0:00:13.4]} 28... exd5 {[%clk 0:01:11.6]} 29. Bc3 {[%clk
0:00:13.2]} 29... d4 {[%clk 0:01:11.2]} 30. Be1 {[%clk 0:00:12.6]} 30... Bd6
{[%clk 0:01:11.3]} 31. Nf5 {[%clk 0:00:12.4]} 31... Be5 {[%clk 0:01:05.6]} 32.
Bd2 {[%clk 0:00:07.7]} 32... Kf7 {[%clk 0:01:05.7]} 33. f4 {[%clk 0:00:07.7]}
33... Bc7 {[%clk 0:01:04.7]} 34. Re1 {[%clk 0:00:08]} 34... Be6 {[%clk 0:01:00]}
35. Nxg7 {[%clk 0:00:04.2]} 35... Kxg7 {[%clk 0:00:51.4]} 36. Rxe6 {[%clk
0:00:03.6]} 36... Kf7 {[%clk 0:00:52.3]} 37. Rc6 {[%clk 0:00:03.5]} 37... Ra7
{[%clk 0:00:50.8]} 38. f5 {[%clk 0:00:03]} 38... Rb7 {[%clk 0:00:48.9]} 39. g5
{[%clk 0:00:03.2]} 39... Be5 {[%clk 0:00:48.6]} 40. gxf6 {[%clk 0:00:03]} 40...
d3 {[%clk 0:00:46.8]} 41. Bc3 {[%clk 0:00:02.5]} 41... Bxc3 {[%clk 0:00:46.2]}
42. bxc3 {[%clk 0:00:03.4]} 42... Rd7 {[%clk 0:00:45.7]} 0-1

[Event "Early-Titled-Tuesday-Blitz-February-27-2024"]
[Site "Chess.com"]
[Date "2024.02.27"]
[Round "5"]
[White "maciek_92"]
[Black "Zq1"]
[Result "1/2-1/2"]
[WhiteElo "2836"]
[BlackElo "2635"]
[TimeControl "180+1"]
[EndTime "8:53:55 PST"]
[Termination "Game drawn - insufficient material"]

1. e4 {[%clk 0:03:00.9]} 1... c5 {[%clk 0:02:59.3]} 2. Nf3 {[%clk 0:03:00.3]}
2... d6 {[%clk 0:02:59.4]} 3. Bb5+ {[%clk 0:02:58.9]} 3... Bd7 {[%clk
0:02:58.8]} 4. a4 {[%clk 0:02:56.8]} 4... Nc6 {[%clk 0:02:58.2]} 5. O-O {[%clk
0:02:56.4]} 5... Nf6 {[%clk 0:02:57.1]} 6. Re1 {[%clk 0:02:49.2]} 6... g6 {[%clk
0:02:55.5]} 7. c3 {[%clk 0:02:47.8]} 7... Bg7 {[%clk 0:02:54.2]} 8. d4 {[%clk
0:02:47.5]} 8... cxd4 {[%clk 0:02:53.3]} 9. cxd4 {[%clk 0:02:48.4]} 9... O-O
{[%clk 0:02:51.7]} 10. Nc3 {[%clk 0:02:45.2]} 10... a6 {[%clk 0:02:42.4]} 11.
Be2 {[%clk 0:02:32.8]} 11... Rc8 {[%clk 0:02:34.9]} 12. h3 {[%clk 0:02:29.5]}
12... e5 {[%clk 0:02:31.2]} 13. Be3 {[%clk 0:02:25.8]} 13... exd4 {[%clk
0:02:24.9]} 14. Nxd4 {[%clk 0:02:26.7]} 14... Nxd4 {[%clk 0:02:24.3]} 15. Bxd4
{[%clk 0:02:24.6]} 15... Bc6 {[%clk 0:02:19.7]} 16. Bf3 {[%clk 0:02:13.3]} 16...
Re8 {[%clk 0:02:18.7]} 17. Qd2 {[%clk 0:02:12.3]} 17... b5 {[%clk 0:02:07.5]}
18. axb5 {[%clk 0:02:10.7]} 18... axb5 {[%clk 0:02:07]} 19. Nd5 {[%clk
0:01:47.7]} 19... Bxd5 {[%clk 0:02:00]} 20. exd5 {[%clk 0:01:48.6]} 20... Rxe1+
{[%clk 0:01:58.7]} 21. Qxe1 {[%clk 0:01:37.2]} 21... Nd7 {[%clk 0:01:57.1]} 22.
Bxg7 {[%clk 0:01:36.6]} 22... Kxg7 {[%clk 0:01:56.6]} 23. Bg4 {[%clk 0:01:29.5]}
23... h5 {[%clk 0:01:47.4]} 24. Bxd7 {[%clk 0:01:27.6]} 24... Qxd7 {[%clk
0:01:47.1]} 25. Qb4 {[%clk 0:01:27.9]} 25... Qc7 {[%clk 0:01:39.6]} 26. Qd4+
{[%clk 0:01:25.4]} 26... Kg8 {[%clk 0:01:39.3]} 27. Ra6 {[%clk 0:01:08.5]} 27...
Qc5 {[%clk 0:01:33.2]} 28. Qxc5 {[%clk 0:00:31.3]} 28... Rxc5 {[%clk 0:01:32.3]}
29. Rxd6 {[%clk 0:00:31.8]} 29... Rc2 {[%clk 0:01:32]} 30. Kf1 {[%clk
0:00:12.7]} 30... Rxb2 {[%clk 0:01:30]} 31. Rd8+ {[%clk 0:00:13.2]} 31... Kg7
{[%clk 0:01:28.6]} 32. d6 {[%clk 0:00:12.4]} 32... Rd2 {[%clk 0:01:25.5]} 33.
Ke1 {[%clk 0:00:13.1]} 33... Rd5 {[%clk 0:01:24]} 34. Rb8 {[%clk 0:00:12.6]}
34... Rxd6 {[%clk 0:01:23.5]} 35. Rxb5 {[%clk 0:00:13]} 35... Re6+ {[%clk
0:01:18.1]} 36. Kf1 {[%clk 0:00:13.3]} 36... Rd6 {[%clk 0:01:17.9]} 37. g3
{[%clk 0:00:13.7]} 37... Re6 {[%clk 0:01:17.2]} 38. h4 {[%clk 0:00:14.4]} 38...
Rd6 {[%clk 0:01:17.2]} 39. Kg2 {[%clk 0:00:14.9]} 39... Re6 {[%clk 0:01:17.2]}
40. Kf3 {[%clk 0:00:15.6]} 40... Rd6 {[%clk 0:01:17.4]} 41. Rb3 {[%clk
0:00:16.2]} 41... Re6 {[%clk 0:01:17.3]} 42. Re3 {[%clk 0:00:17]} 42... Rxe3+
{[%clk 0:01:17.2]} 43. Kxe3 {[%clk 0:00:17.9]} 43... Kf6 {[%clk 0:01:17]} 44.
Kf4 {[%clk 0:00:18.4]} 44... Ke6 {[%clk 0:01:14.7]} 45. Kg5 {[%clk 0:00:18.2]}
45... Ke5 {[%clk 0:01:14.5]} 46. f3 {[%clk 0:00:18.3]} 46... Ke6 {[%clk
0:01:11.4]} 47. g4 {[%clk 0:00:15]} 47... hxg4 {[%clk 0:01:10.1]} 48. fxg4
{[%clk 0:00:15.5]} 48... Ke7 {[%clk 0:01:08.2]} 49. Kf4 {[%clk 0:00:11.2]} 49...
Kf6 {[%clk 0:01:07.7]} 50. Ke4 {[%clk 0:00:09.5]} 50... Ke6 {[%clk 0:01:06.4]}
51. Kf4 {[%clk 0:00:09.3]} 51... Kf6 {[%clk 0:01:06.4]} 52. g5+ {[%clk
0:00:06.8]} 52... Ke6 {[%clk 0:01:05.9]} 53. Kg4 {[%clk 0:00:07.5]} 53... Ke5
{[%clk 0:01:04.6]} 54. h5 {[%clk 0:00:08.4]} 54... gxh5+ {[%clk 0:01:03.7]} 55.
Kxh5 {[%clk 0:00:09.3]} 55... Kf5 {[%clk 0:01:03.2]} 56. Kh6 {[%clk 0:00:09.9]}
56... Kg4 {[%clk 0:01:03.3]} 57. Kg7 {[%clk 0:00:10.4]} 57... Kxg5 {[%clk
0:01:03.5]} 58. Kxf7 {[%clk 0:00:10.9]} 1/2-1/2

[Event "Early-Titled-Tuesday-Blitz-February-27-2024"]
[Site "Chess.com"]
[Date "2024.02.27"]
[Round "5"]
[White "phantom19801127"]
[Black "Kezin_Roman"]
[Result "0-1"]
[WhiteElo "2536"]
[BlackElo "2785"]
[TimeControl "180+1"]
[EndTime "8:53:55 PST"]
[Termination "Kezin_Roman won by checkmate"]

1. d4 {[%clk 0:02:56.5]} 1... g6 {[%clk 0:03:00.7]} 2. c4 {[%clk 0:02:55.5]}
2... Bg7 {[%clk 0:03:01.4]} 3. h4 {[%clk 0:02:55.2]} 3... Nf6 {[%clk 0:02:58.7]}
4. Nc3 {[%clk 0:02:54.5]} 4... c5 {[%clk 0:02:59.1]} 5. d5 {[%clk 0:02:54]} 5...
d6 {[%clk 0:02:54.8]} 6. e4 {[%clk 0:02:54]} 6... b5 {[%clk 0:02:52.9]} 7. cxb5
{[%clk 0:02:53.4]} 7... a6 {[%clk 0:02:53.2]} 8. a4 {[%clk 0:02:52.9]} 8... O-O
{[%clk 0:02:47.5]} 9. Ra3 {[%clk 0:02:50.4]} 9... Re8 {[%clk 0:02:32.5]} 10. Be2
{[%clk 0:02:49.3]} 10... e6 {[%clk 0:02:32.9]} 11. Kf1 {[%clk 0:02:49.1]} 11...
exd5 {[%clk 0:02:27.3]} 12. exd5 {[%clk 0:02:49]} 12... Nbd7 {[%clk 0:02:20.3]}
13. h5 {[%clk 0:02:48.6]} 13... axb5 {[%clk 0:02:20]} 14. Nxb5 {[%clk
0:02:45.2]} 14... Nb6 {[%clk 0:02:17]} 15. hxg6 {[%clk 0:02:39.3]} 15... hxg6
{[%clk 0:02:15.2]} 16. Bf4 {[%clk 0:02:33.8]} 16... Nbxd5 {[%clk 0:01:55]} 17.
Bxd6 {[%clk 0:02:30.3]} 17... Bb7 {[%clk 0:01:44.9]} 18. Bc4 {[%clk 0:02:05.2]}
18... Re4 {[%clk 0:01:20.1]} 19. b3 {[%clk 0:01:50.9]} 19... Qa5 {[%clk
0:01:17.2]} 20. Nf3 {[%clk 0:01:44.8]} 20... Rae8 {[%clk 0:01:16.4]} 21. Ra2
{[%clk 0:01:36.6]} 21... Ng4 {[%clk 0:01:03.8]} 22. Bxc5 {[%clk 0:01:07.5]}
22... Bf6 {[%clk 0:00:09.1]} 23. Re2 {[%clk 0:00:22.3]} 23... Nc3 {[%clk
0:00:06.5]} 24. Nxc3 {[%clk 0:00:19.9]} 24... Rxe2 {[%clk 0:00:06.7]} 25. Nxe2
{[%clk 0:00:14.7]} 25... Qxc5 {[%clk 0:00:06.8]} 26. Qd7 {[%clk 0:00:14.6]}
26... Qxf2# {[%clk 0:00:06.3]} 0-1

[Event "Early-Titled-Tuesday-Blitz-February-27-2024"]
[Site "Chess.com"]
[Date "2024.02.27"]
[Round "5"]
[White "Road2GM3000"]
[Black "regenda"]
[Result "1-0"]
[WhiteElo "2436"]
[BlackElo "2251"]
[TimeControl "180+1"]
[EndTime "8:53:55 PST"]
[Termination "Road2GM3000 won by resignation"]

1. d4 {[%clk 0:02:58.4]} 1... d5 {[%clk 0:02:59.2]} 2. c4 {[%clk 0:02:58.6]}
2... c6 {[%clk 0:02:59.7]} 3. Nc3 {[%clk 0:02:59.3]} 3... Nf6 {[%clk 0:02:59.5]}
4. Nf3 {[%clk 0:03:00]} 4... e6 {[%clk 0:02:59.7]} 5. cxd5 {[%clk 0:03:00.7]}
5... exd5 {[%clk 0:02:59.8]} 6. Bg5 {[%clk 0:03:01.5]} 6... Nbd7 {[%clk
0:02:55.5]} 7. e3 {[%clk 0:03:02]} 7... Bd6 {[%clk 0:02:53.2]} 8. Bd3 {[%clk
0:03:02.5]} 8... Nf8 {[%clk 0:02:53.3]} 9. Qc2 {[%clk 0:03:03.2]} 9... Ng6
{[%clk 0:02:53.1]} 10. h4 {[%clk 0:03:03.3]} 10... Ne7 {[%clk 0:02:52.2]} 11.
Ne5 {[%clk 0:03:03]} 11... Nd7 {[%clk 0:02:50.2]} 12. h5 {[%clk 0:02:56.8]}
12... Nxe5 {[%clk 0:02:45.7]} 13. dxe5 {[%clk 0:02:57]} 13... Bxe5 {[%clk
0:02:46.6]} 14. Bxh7 {[%clk 0:02:57.3]} 14... Qa5 {[%clk 0:02:29.7]} 15. h6
{[%clk 0:02:53.8]} 15... Bg4 {[%clk 0:02:01.4]} 16. hxg7 {[%clk 0:02:48.5]}
16... Bxg7 {[%clk 0:02:02.3]} 17. Rh4 {[%clk 0:02:27.2]} 17... Rxh7 {[%clk
0:01:24.3]} 18. Rxh7 {[%clk 0:02:00.6]} 18... Bf5 {[%clk 0:01:21.9]} 19. Qb3
{[%clk 0:01:22.8]} 19... Bxc3+ {[%clk 0:01:04.8]} 20. bxc3 {[%clk 0:01:20.8]}
20... Bxh7 {[%clk 0:01:04.5]} 21. Qxb7 {[%clk 0:01:15.6]} 21... Qxc3+ {[%clk
0:01:02.2]} 22. Ke2 {[%clk 0:01:16]} 22... Qc4+ {[%clk 0:00:19.2]} 23. Kd2
{[%clk 0:01:03.4]} 23... Qd3+ {[%clk 0:00:14.9]} 24. Ke1 {[%clk 0:01:02.9]}
24... Qc3+ {[%clk 0:00:15.4]} 25. Ke2 {[%clk 0:01:01.6]} 25... Qc2+ {[%clk
0:00:15.8]} 26. Kf3 {[%clk 0:01:02.4]} 26... Qe4+ {[%clk 0:00:16.1]} 27. Kg3
{[%clk 0:01:01.1]} 27... Rc8 {[%clk 0:00:16.2]} 28. Bxe7 {[%clk 0:00:58.2]}
28... Qxe7 {[%clk 0:00:15.9]} 29. Qxc8+ {[%clk 0:00:58.3]} 29... Qd8 {[%clk
0:00:16.4]} 30. Qxc6+ {[%clk 0:00:56.7]} 30... Kf8 {[%clk 0:00:16.3]} 31. Qh6+
{[%clk 0:00:44.1]} 31... Kg8 {[%clk 0:00:15.2]} 32. Rh1 {[%clk 0:00:44.8]} 32...
Qc7+ {[%clk 0:00:07.4]} 33. f4 {[%clk 0:00:45.5]} 33... f6 {[%clk 0:00:04.7]}
34. Qxf6 {[%clk 0:00:44.9]} 34... Qg7+ {[%clk 0:00:02.1]} 35. Qxg7+ {[%clk
0:00:44.8]} 35... Kxg7 {[%clk 0:00:03]} 36. Rh5 {[%clk 0:00:45.1]} 36... Be4
{[%clk 0:00:02.6]} 37. Re5 {[%clk 0:00:43.9]} 37... Kf6 {[%clk 0:00:02.4]} 38.
Rxe4 {[%clk 0:00:43.4]} 38... dxe4 {[%clk 0:00:03.3]} 39. Kh4 {[%clk 0:00:40.8]}
39... Ke6 {[%clk 0:00:02.7]} 40. g4 {[%clk 0:00:41.2]} 40... Kd5 {[%clk
0:00:03.4]} 41. Kg3 {[%clk 0:00:42]} 41... Kc4 {[%clk 0:00:04.1]} 42. g5 {[%clk
0:00:42.3]} 42... Kd3 {[%clk 0:00:04.4]} 43. Kf2 {[%clk 0:00:42.5]} 1-0

[Event "Early-Titled-Tuesday-Blitz-February-27-2024"]
[Site "Chess.com"]
[Date "2024.02.27"]
[Round "5"]
[White "vladgoncharov"]
[Black "jamengrand"]
[Result "0-1"]
[WhiteElo "2643"]
[BlackElo "2400"]
[TimeControl "180+1"]
[EndTime "8:53:58 PST"]
[Termination "jamengrand won on time"]

1. d4 {[%clk 0:03:00.9]} 1... d5 {[%clk 0:03:00]} 2. c4 {[%clk 0:03:00.1]} 2...
e6 {[%clk 0:03:00.3]} 3. Nc3 {[%clk 0:02:59.3]} 3... Nf6 {[%clk 0:03:00.8]} 4.
cxd5 {[%clk 0:02:59.3]} 4... Nxd5 {[%clk 0:03:00.6]} 5. e4 {[%clk 0:02:58.9]}
5... Nxc3 {[%clk 0:03:00.7]} 6. bxc3 {[%clk 0:02:59.2]} 6... c5 {[%clk
0:03:01.4]} 7. Rb1 {[%clk 0:02:44.6]} 7... Be7 {[%clk 0:03:01.5]} 8. Nf3 {[%clk
0:02:42.6]} 8... O-O {[%clk 0:03:01.2]} 9. Be2 {[%clk 0:02:39.3]} 9... b6 {[%clk
0:03:00.2]} 10. O-O {[%clk 0:02:32.9]} 10... Bb7 {[%clk 0:03:00.4]} 11. Bd3
{[%clk 0:02:24.9]} 11... Nc6 {[%clk 0:02:41.3]} 12. Qe2 {[%clk 0:02:04.8]} 12...
cxd4 {[%clk 0:02:39.6]} 13. cxd4 {[%clk 0:02:04.8]} 13... Nxd4 {[%clk
0:02:35.2]} 14. Nxd4 {[%clk 0:02:04.6]} 14... Qxd4 {[%clk 0:02:36]} 15. Bb2
{[%clk 0:02:04.9]} 15... Qa4 {[%clk 0:02:30]} 16. Qg4 {[%clk 0:01:45.3]} 16...
g6 {[%clk 0:02:29.8]} 17. Qf4 {[%clk 0:01:41]} 17... Qa5 {[%clk 0:02:16.5]} 18.
Qh6 {[%clk 0:01:21.4]} 18... e5 {[%clk 0:02:10.4]} 19. Rfe1 {[%clk 0:01:17.1]}
19... Bf6 {[%clk 0:01:56]} 20. Bc4 {[%clk 0:01:03.1]} 20... Rac8 {[%clk
0:01:46.9]} 21. Bb3 {[%clk 0:01:02.7]} 21... Bg7 {[%clk 0:01:36.5]} 22. Qg5
{[%clk 0:00:59.8]} 22... Ba6 {[%clk 0:01:30.8]} 23. Rbc1 {[%clk 0:00:49]} 23...
Bc4 {[%clk 0:01:23.5]} 24. Bc3 {[%clk 0:00:31.7]} 24... Qb5 {[%clk 0:01:20]} 25.
Rb1 {[%clk 0:00:22.2]} 25... Bxb3 {[%clk 0:01:19.6]} 26. Rxb3 {[%clk 0:00:22]}
26... Qa4 {[%clk 0:01:12.4]} 27. Qd2 {[%clk 0:00:21.4]} 27... Rfd8 {[%clk
0:01:07.9]} 28. Qe2 {[%clk 0:00:20.9]} 28... Qc4 {[%clk 0:01:05]} 29. Qf3 {[%clk
0:00:17.5]} 29... Rd3 {[%clk 0:01:03.2]} 30. Re3 {[%clk 0:00:17.2]} 30... Rcd8
{[%clk 0:00:55.7]} 31. h4 {[%clk 0:00:16.4]} 31... Bh6 {[%clk 0:00:52.3]} 32.
Rxd3 {[%clk 0:00:11.7]} 32... Rxd3 {[%clk 0:00:52.1]} 33. Qf6 {[%clk 0:00:08.8]}
33... Rd1+ {[%clk 0:00:35.8]} 34. Kh2 {[%clk 0:00:08.4]} 34... Bf4+ {[%clk
0:00:36.1]} 35. g3 {[%clk 0:00:08.6]} 35... Qf1 {[%clk 0:00:34.5]} 36. gxf4
{[%clk 0:00:02]} 36... Qxf2+ {[%clk 0:00:29.7]} 0-1